bitfinex/quotes_BTCUSD_20220111
["timestamp","ask_amount","ask_price","bid_price","bid_amount"]
[1641859201861,0.003,41839.0,41836.0,0.35155292]
[1641859202057,0.00990348,41844.0,41836.0,0.35155292]
[1641859202257,0.372302,41843.0,41836.0,0.35155292]
[1641859202459,0.00990348,41844.0,41836.0,0.35155292]
[1641859202657,0.36214964,41844.0,41836.0,0.35155292]
[1641859203058,0.372302,41843.0,41836.0,0.35155292]
[1641859204520,0.00990348,41844.0,41836.0,0.35155292]
[1641859204716,0.006,41843.0,41836.0,0.35155292]
[1641859205315,0.006,41843.0,41837.0,0.34960459]
[1641859205915,0.00990348,41844.0,41837.0,0.34960459]
[1641859206718,0.01190348,41844.0,41837.0,0.34960459]
[1641859207120,0.01190348,41844.0,41836.0,0.35155292]
[1641859207959,0.00990348,41844.0,41836.0,0.35155292]
[1641859208759,0.01290348,41844.0,41836.0,0.35155292]
[1641859209358,0.02212725,41840.0,41836.0,0.05]
[1641859209661,0.0442545,41840.0,41834.0,0.53039443]
[1641859210459,0.0442545,41840.0,41835.0,0.30282709]
[1641859212106,0.0442545,41840.0,41836.0,0.059769]
[1641859212309,0.0442545,41840.0,41836.0,0.539837]
[1641859212505,0.0442545,41840.0,41836.0,0.639837]
[1641859212706,0.0442545,41840.0,41838.0,0.0012972]
[1641859212904,0.0442545,41840.0,41839.0,0.420302]
[1641859213105,0.0442545,41840.0,41839.0,0.470302]
[1641859214108,0.0442545,41840.0,41836.0,0.059769]
[1641859214306,0.048,41839.0,41836.0,0.059769]
[1641859214809,0.0442545,41838.0,41835.0,0.119527]
[1641859215006,0.0442545,41838.0,41837.0,0.31211212]
[1641859215457,0.0442545,41838.0,41837.0,0.36211212]
[1641859215856,0.0442545,41838.0,41837.0,0.31211212]
[1641859216256,0.0442545,41838.0,41835.0,0.119527]
[1641859216456,0.0442545,41838.0,41833.0,0.06063395]
[1641859216656,0.0472545,41838.0,41833.0,0.06063395]
[1641859216857,0.0472545,41838.0,41833.0,0.059776]
[1641859217056,0.0472545,41838.0,41833.0,0.06063394]
[1641859217259,0.0472545,41838.0,41837.0,0.32485149]
[1641859217460,0.0472545,41838.0,41837.0,0.37485149]
[1641859218057,0.0442545,41838.0,41837.0,0.37485149]
[1641859218657,0.0482545,41838.0,41837.0,0.37485149]
[1641859219108,0.0482545,41838.0,41837.0,0.32485149]
[1641859219308,0.0482545,41838.0,41833.0,0.06063395]
[1641859219711,0.02612725,41838.0,41833.0,0.06063395]
[1641859220011,0.02212725,41836.0,41833.0,0.06063395]
[1641859220208,0.0442545,41836.0,41833.0,0.06063395]
[1641859220408,0.0442545,41836.0,41834.0,0.27799305]
[1641859221912,0.0442545,41836.0,41833.0,0.44980757]
[1641859222313,0.0442545,41836.0,41833.0,0.00085794]
[1641859222756,0.0442545,41836.0,41834.0,0.30620663]
[1641859222957,0.0442545,41836.0,41835.0,1.30355442]
[1641859223259,0.00093843,41838.0,41835.0,0.75284088]
[1641859223454,0.00093843,41838.0,41835.0,0.80284088]
[1641859223657,0.00093843,41838.0,41835.0,0.95284088]
[1641859223859,0.00093843,41838.0,41835.0,1.01259988]
[1641859224057,0.00093843,41838.0,41836.0,0.84102904]
[1641859224259,0.00093843,41838.0,41837.0,0.420302]
[1641859224458,0.00093843,41838.0,41837.0,0.79475343]
[1641859224657,0.002,41842.0,41838.0,1.45]
[1641859224658,3.843e-05,41842.0,41838.0,1.45]
[1641859224859,3.843e-05,41842.0,41839.0,0.78557852]
[1641859225059,3.843e-05,41842.0,41841.0,0.00124642]
[1641859225257,3.843e-05,41842.0,41841.0,0.70347547]
[1641859226057,3.843e-05,41842.0,41841.0,0.90147547]
[1641859226258,3.843e-05,41842.0,41841.0,1.74557491]
[1641859226520,0.55305005,41864.0,41841.0,1.74557491]
[1641859226521,0.15478723,41857.0,41843.0,1.45]
[1641859226718,0.70429298,41859.0,41855.0,0.06099351]
[1641859226919,0.70429298,41859.0,41858.0,0.58810529]
[1641859227121,0.70429298,41859.0,41858.0,0.68610529]
[1641859227318,0.70429298,41859.0,41858.0,1.15097942]
[1641859227518,0.703695,41859.0,41858.0,1.64140226]
[1641859227720,0.251,41865.0,41860.0,0.059724]
[1641859227721,0.00059834,41861.0,41860.0,0.059724]
[1641859227919,0.00059834,41861.0,41860.0,0.42159888]
[1641859228117,0.00059834,41861.0,41860.0,0.62159888]
[1641859228720,0.251,41865.0,41860.0,0.62159888]
[1641859228919,0.005,41861.0,41860.0,0.59805288]
[1641859229619,0.005,41861.0,41860.0,0.95582608]
[1641859230019,0.251,41865.0,41860.0,0.94882608]
[1641859230268,0.251,41865.0,41862.0,0.11945164]
[1641859230269,0.00059836,41863.0,41862.0,0.11945164]
[1641859230463,0.00059836,41863.0,41862.0,0.53975364]
[1641859230665,0.00059836,41863.0,41862.0,0.58975364]
[1641859230863,0.00059836,41863.0,41862.0,0.67575364]
[1641859231262,0.251,41865.0,41862.0,0.67575364]
[1641859231464,0.33284662,41864.0,41862.0,0.184]
[1641859231664,1.7725771,41863.0,41862.0,0.086]
[1641859231864,2.1448791,41863.0,41862.0,0.086]
[1641859232565,0.6948791,41863.0,41862.0,0.086]
[1641859232766,0.418302,41863.0,41862.0,0.331]
[1641859232964,0.046,41863.0,41862.0,0.331]
[1641859233164,0.046,41863.0,41862.0,0.881]
[1641859233364,0.046,41863.0,41862.0,1.381]
[1641859233567,0.25159838,41865.0,41862.0,1.381]
[1641859233568,0.1559,41865.0,41862.0,1.381]
[1641859233765,0.15649838,41865.0,41864.0,0.28861455]
[1641859234207,0.15649838,41865.0,41864.0,0.5]
[1641859234607,0.15649838,41865.0,41863.0,0.05]
[1641859234811,0.1989,41865.0,41863.0,0.05]
[1641859235009,0.1989,41865.0,41862.0,0.29]
[1641859235211,0.1989,41865.0,41862.0,0.56486032]
[1641859235416,0.1989,41865.0,41863.0,0.71946845]
[1641859235609,0.1989,41865.0,41864.0,0.048]
[1641859235811,0.1989,41865.0,41864.0,0.420302]
[1641859236009,0.1559,41865.0,41864.0,0.420302]
[1641859236611,0.1559,41865.0,41864.0,0.048]
[1641859236809,0.1559,41865.0,41864.0,0.061]
[1641859237410,0.1559,41865.0,41864.0,0.433302]
[1641859237862,0.1559,41865.0,41864.0,0.75952697]
[1641859238064,0.1559,41865.0,41864.0,0.74652697]
[1641859238462,0.1559,41865.0,41864.0,0.79652697]
[1641859238862,0.1559,41865.0,41864.0,0.81752697]
[1641859239265,0.1559,41865.0,41864.0,0.86752697]
[1641859239763,0.1559,41865.0,41864.0,0.541302]
[1641859240163,0.1559,41865.0,41864.0,0.470302]
[1641859240764,0.1559,41865.0,41864.0,0.506302]
[1641859240966,0.1559,41865.0,41864.0,0.456302]
[1641859241610,0.1559,41865.0,41864.0,0.506302]
[1641859242009,0.1559,41865.0,41864.0,0.470302]
[1641859242811,0.1559,41865.0,41864.0,0.509302]
[1641859243014,0.1559,41865.0,41864.0,0.83620289]
[1641859243314,0.00159839,41867.0,41864.0,0.83620289]
[1641859243512,0.00159839,41867.0,41865.0,0.119428]
[1641859243812,0.00159839,41867.0,41866.0,0.372302]
[1641859244011,0.00159839,41867.0,41866.0,0.472302]
[1641859244413,0.001,41867.0,41866.0,0.472302]
[1641859244813,0.001,41867.0,41866.0,0.85742585]
[1641859246061,0.001,41867.0,41866.0,0.95742585]
[1641859246261,0.00059841,41869.0,41867.0,1.48399638]
[1641859246460,0.00059841,41869.0,41868.0,0.45662472]
[1641859246860,0.001,41873.0,41868.0,0.048]
[1641859247061,0.00059843,41871.0,41867.0,0.041]
[1641859247263,0.372302,41870.0,41867.0,0.041]
[1641859247660,1.20809788,41868.0,41867.0,0.041]
[1641859247863,1.322302,41868.0,41867.0,0.041]
[1641859248063,1.322302,41868.0,41862.0,0.29]
[1641859248265,0.95,41868.0,41862.0,0.29]
[1641859248764,0.28806174,41870.0,41864.0,0.26486387]
[1641859249016,0.28806174,41870.0,41865.0,0.05]
[1641859249517,0.001,41873.0,41865.0,0.05]
[1641859249716,0.001,41873.0,41866.0,0.059725]
[1641859249916,0.001,41873.0,41866.0,0.119447]
[1641859250115,0.001,41873.0,41867.0,0.05]
[1641859250517,0.001,41873.0,41871.0,0.25020029]
[1641859250518,0.37289545,41872.0,41871.0,0.25020029]
[1641859250716,0.37289545,41872.0,41866.0,0.50074921]
[1641859250918,0.00059345,41872.0,41867.0,0.018]
[1641859251222,0.00059345,41872.0,41867.0,0.068]
[1641859251617,0.001,41873.0,41867.0,0.068]
[1641859251818,0.001,41873.0,41868.0,0.2519012]
[1641859251819,0.00059345,41872.0,41868.0,0.2519012]
[1641859252018,0.00059345,41872.0,41868.0,0.3116232]
[1641859252217,0.00059345,41872.0,41869.0,0.059719]
[1641859252418,0.00078678,41873.0,41869.0,0.059719]
[1641859252858,0.00078678,41873.0,41869.0,0.075719]
[1641859253059,0.00078678,41873.0,41869.0,0.125719]
[1641859253458,0.00078678,41873.0,41870.0,0.119426]
[1641859253860,0.00078678,41873.0,41871.0,0.05]
[1641859254858,0.00078678,41873.0,41871.0,0.056]
[1641859255058,0.00078678,41873.0,41871.0,0.115712]
[1641859255461,0.00078678,41873.0,41872.0,1.15138659]
[1641859256159,0.00078678,41873.0,41872.0,1.30138659]
[1641859256410,0.00078678,41873.0,41872.0,1.20138659]
[1641859256609,0.00078678,41873.0,41872.0,1.15138659]
[1641859256809,0.00078678,41873.0,41872.0,0.02020461]
[1641859257010,0.00078678,41873.0,41872.0,0.019]
[1641859258109,0.00078678,41873.0,41867.0,0.059724]
[1641859258308,0.00078678,41873.0,41865.0,0.49110769]
[1641859258509,0.00078678,41873.0,41868.0,0.27069587]
[1641859259011,0.00078678,41873.0,41868.0,0.32069587]
[1641859259212,0.00078678,41873.0,41870.0,0.059719]
[1641859260663,0.00158853,41874.0,41873.0,0.55608462]
[1641859261262,0.001,41874.0,41873.0,0.92838662]
[1641859261664,0.001,41874.0,41873.0,0.55608462]
[1641859262662,0.246,41875.0,41873.0,0.55608462]
[1641859262866,0.246,41875.0,41874.0,0.24564488]
[1641859264013,0.246,41875.0,41874.0,0.29564488]
[1641859264917,0.246,41875.0,41874.0,0.31164488]
[1641859265917,0.246,41875.0,41874.0,0.066]
[1641859266118,0.246,41875.0,41874.0,0.05]
[1641859266119,1.146,41875.0,41874.0,0.05]
[1641859266318,0.57928914,41875.0,41874.0,0.05]
[1641859266821,0.246,41875.0,41874.0,0.05]
[1641859267017,0.246,41875.0,41869.0,0.06096783]
[1641859267018,1.45,41874.0,41869.0,0.06096783]
[1641859267219,1.45,41874.0,41865.0,0.0027242]
[1641859267220,0.10123462,41870.0,41865.0,0.0027242]
[1641859267417,0.54571252,41869.0,41864.0,0.00085763]
[1641859267673,0.186882,41868.0,41864.0,0.00085763]
[1641859268065,1.70288921,41865.0,41864.0,0.00085763]
[1641859268264,2.07514421,41865.0,41864.0,0.00085763]
[1641859268464,0.372255,41865.0,41861.0,0.0027242]
[1641859268668,0.0669399,41868.0,41863.0,0.1]
[1641859268964,0.0669399,41868.0,41864.0,0.024]
[1641859268965,0.002,41865.0,41864.0,0.024]
[1641859269367,0.002,41865.0,41864.0,0.124]
[1641859269566,0.002,41865.0,41864.0,0.43373259]
[1641859269764,0.002,41865.0,41864.0,0.82774947]
[1641859269963,0.002,41865.0,41864.0,1.20000447]
[1641859270364,0.00058837,41874.0,41864.0,1.02600447]
[1641859270564,0.00058837,41874.0,41864.0,0.30973259]
[1641859270764,0.31392529,41873.0,41868.0,0.1]
[1641859270965,0.372255,41872.0,41868.0,0.41326206]
[1641859271612,0.06751378,41874.0,41868.0,0.41326206]
[1641859271613,0.00778378,41874.0,41868.0,0.41326206]
[1641859271812,0.00778378,41874.0,41869.0,0.33789333]
[1641859272116,0.0071953,41874.0,41869.0,0.33789333]
[1641859272312,0.00778382,41874.0,41869.0,0.33789333]
[1641859272612,0.00778382,41874.0,41872.0,0.295589]
[1641859272814,0.00778382,41874.0,41868.0,0.46326206]
[1641859273014,0.01278382,41874.0,41869.0,0.046]
[1641859273214,0.0121953,41874.0,41869.0,0.096]
[1641859273414,0.01278382,41874.0,41869.0,0.096]
[1641859273613,0.01278382,41874.0,41869.0,0.336]
[1641859273814,0.01278382,41874.0,41869.0,0.286]
[1641859274116,0.002,41879.0,41877.0,0.00125012]
[1641859274315,0.0001,41879.0,41878.0,0.1012413]
[1641859274514,0.0001,41879.0,41878.0,0.1512413]
[1641859274916,0.0001,41879.0,41878.0,1.07657591]
[1641859275171,0.0001,41879.0,41878.0,1.45983091]
[1641859276169,0.0001,41879.0,41878.0,1.44883091]
[1641859276969,0.0001,41879.0,41878.0,1.47483091]
[1641859277372,0.0001,41879.0,41878.0,1.51418201]
[1641859277571,0.0001,41879.0,41878.0,1.14538958]
[1641859277769,0.001,41881.0,41878.0,1.47365843]
[1641859277971,0.90204009,41895.0,41882.0,0.059691]
[1641859278171,0.00233457,41887.0,41884.0,0.10128001]
[1641859278372,0.00233457,41887.0,41884.0,0.8036271]
[1641859278672,0.00233457,41887.0,41884.0,0.8536271]
[1641859278911,0.00233457,41887.0,41884.0,0.8646271]
[1641859279115,1.95204086,41903.0,41901.0,1.40725363]
[1641859279314,0.372255,41902.0,41901.0,1.40725363]
[1641859279715,0.219718,41903.0,41901.0,1.40725363]
[1641859279920,0.54657706,41902.0,41901.0,1.40725363]
[1641859280116,0.372255,41901.0,41900.0,0.36615006]
[1641859280517,0.472255,41901.0,41900.0,0.36615006]
[1641859280915,1.272255,41901.0,41900.0,0.09767277]
[1641859281317,0.472255,41901.0,41900.0,0.09767277]
[1641859282964,1.2237418,41901.0,41900.0,0.09767277]
[1641859283167,1.86140045,41901.0,41900.0,0.09767277]
[1641859283364,2.12452732,41901.0,41900.0,0.33767277]
[1641859283764,2.39279217,41901.0,41900.0,0.33767277]
[1641859284364,2.59279217,41901.0,41900.0,0.33767277]
[1641859284766,3.0285589,41901.0,41900.0,0.33767277]
[1641859285066,2.0285589,41901.0,41900.0,0.33767277]
[1641859285264,1.76543203,41901.0,41900.0,0.33767277]
[1641859285464,1.81543203,41901.0,41900.0,0.33767277]
[1641859285663,1.76543203,41901.0,41900.0,0.33767277]
[1641859286266,2.06689109,41901.0,41900.0,0.33767277]
[1641859286516,2.06189109,41901.0,41900.0,0.33767277]
[1641859287119,0.23999351,41900.0,41892.0,0.00244895]
[1641859287318,0.567281,41896.0,41892.0,0.00244895]
[1641859287520,0.186882,41893.0,41892.0,0.00244895]
[1641859287723,0.82709722,41893.0,41892.0,0.00244895]
[1641859287918,0.2,41891.0,41885.0,0.41246582]
[1641859288119,0.186882,41887.0,41885.0,0.41246582]
[1641859288318,2.1216703,41886.0,41885.0,0.41246582]
[1641859288518,2.18261516,41886.0,41885.0,0.41246582]
[1641859288719,2.60465454,41886.0,41885.0,0.41246582]
[1641859288918,1.15465454,41886.0,41885.0,0.41160845]
[1641859289217,1.26265454,41886.0,41885.0,0.42360845]
[1641859289418,1.31265454,41886.0,41885.0,0.42360845]
[1641859289619,1.15,41885.0,41883.0,0.00085733]
[1641859289820,2.03120605,41884.0,41883.0,0.00085733]
[1641859290019,0.68120605,41884.0,41879.0,0.28352236]
[1641859290266,0.68120605,41884.0,41882.0,0.00085735]
[1641859290464,1.722085,41883.0,41882.0,0.00085735]
[1641859290664,0.472085,41883.0,41882.0,0.00085735]
[1641859290861,0.79982816,41883.0,41882.0,0.00085735]
[1641859291062,0.81282816,41883.0,41882.0,0.00085735]
[1641859291263,0.81282816,41883.0,41879.0,0.28352236]
[1641859291469,0.81282816,41883.0,41880.0,0.00085737]
[1641859291665,1.832078,41881.0,41880.0,0.00085737]
[1641859291867,1.916518,41881.0,41880.0,0.00085737]
[1641859292066,2.016518,41881.0,41880.0,0.00085737]
[1641859292270,2.066518,41881.0,41880.0,0.00085737]
[1641859292468,2.066518,41881.0,41875.0,0.00244895]
[1641859292469,0.59484387,41878.0,41875.0,0.00244895]
[1641859292669,1.872085,41876.0,41875.0,0.00244895]
[1641859292871,2.072085,41876.0,41875.0,0.00244895]
[1641859293068,2.172085,41876.0,41875.0,0.00244895]
[1641859293268,0.482085,41876.0,41875.0,0.00244895]
[1641859293918,1.33061242,41876.0,41875.0,0.00244895]
[1641859294719,1.73061242,41876.0,41875.0,0.00244895]
[1641859294918,1.81056093,41876.0,41875.0,0.00244895]
[1641859295118,1.41056093,41876.0,41875.0,0.00234761]
[1641859296121,0.84756093,41876.0,41875.0,0.00234761]
[1641859296322,0.48180351,41876.0,41875.0,0.00234761]
[1641859296724,1.08180351,41876.0,41875.0,0.00234761]
[1641859296921,1.09480351,41876.0,41875.0,0.00234761]
[1641859297122,0.49480351,41876.0,41875.0,0.00234761]
[1641859297323,0.54480351,41876.0,41875.0,0.00234761]
[1641859297524,0.5519988,41876.0,41875.0,0.00234761]
[1641859297772,1.2519988,41876.0,41875.0,0.00234761]
[1641859298176,1.2999988,41876.0,41875.0,0.00234761]
[1641859298373,1.2869988,41876.0,41875.0,0.00234761]
[1641859298573,1.2369988,41876.0,41875.0,0.00234761]
[1641859298774,1.58921251,41876.0,41875.0,0.00234761]
[1641859298975,2.86821251,41876.0,41875.0,0.00234761]
[1641859299174,0.90121251,41876.0,41875.0,0.00234761]
[1641859299574,0.70121251,41876.0,41875.0,0.00234761]
[1641859299775,0.76094917,41876.0,41874.0,0.99818]
[1641859299974,1.66473216,41875.0,41874.0,0.99818]
[1641859300173,1.66060286,41875.0,41874.0,0.99818]
[1641859300374,1.96060286,41875.0,41874.0,0.99818]
[1641859300973,1.97260286,41875.0,41874.0,0.99818]
[1641859302018,3.23960286,41875.0,41874.0,0.99818]
[1641859302221,3.22760286,41875.0,41874.0,0.99818]
[1641859303020,3.23960286,41875.0,41874.0,0.99818]
[1641859303219,1.97260286,41875.0,41874.0,0.99818]
[1641859303423,1.692078,41875.0,41874.0,0.99818]
[1641859303621,1.542078,41875.0,41874.0,0.99818]
[1641859303822,1.542078,41875.0,41874.0,1.00090419]
[1641859304022,1.542078,41875.0,41874.0,1.24090419]
[1641859304222,1.530078,41875.0,41874.0,1.24090419]
[1641859304822,1.530078,41875.0,41874.0,1.24362838]
[1641859305172,1.541078,41875.0,41874.0,1.24362838]
[1641859305763,1.541078,41875.0,41874.0,1.24635257]
[1641859305965,1.741078,41875.0,41874.0,1.24635257]
[1641859306765,1.741078,41875.0,41874.0,1.24907676]
[1641859306963,1.730078,41875.0,41874.0,1.24907676]
[1641859307163,1.744078,41875.0,41874.0,1.24907676]
[1641859307364,1.544078,41875.0,41874.0,1.24907676]
[1641859307769,3.011078,41875.0,41874.0,0.77111376]
[1641859307968,3.011078,41875.0,41874.0,0.77383795]
[1641859308169,3.011078,41875.0,41870.0,0.00878061]
[1641859308170,1.26614253,41872.0,41870.0,0.00878061]
[1641859308368,0.79138574,41871.0,41870.0,0.00878061]
[1641859308572,0.00876,41870.0,41858.0,0.1]
[1641859308769,0.00876,41870.0,41856.0,0.0011]
[1641859308770,0.182078,41866.0,41856.0,0.0011]
[1641859309029,0.32966218,41858.0,41856.0,0.10382419]
[1641859309227,0.6641524,41858.0,41856.0,0.0011]
[1641859309430,0.35232456,41857.0,41856.0,0.0011]
[1641859309629,0.363862,41853.0,41848.0,0.60324291]
[1641859309829,1.813862,41849.0,41844.0,0.60324291]
[1641859310032,0.363862,41845.0,41844.0,0.60324291]
[1641859310227,0.05,41845.0,41837.0,0.0011]
[1641859310430,0.05,41845.0,41832.0,0.0011]
[1641859310431,1.37876075,41844.0,41832.0,0.0011]
[1641859310630,2.08526921,41844.0,41828.0,0.0011]
[1641859310834,2.08526921,41844.0,41824.0,0.0011]
[1641859310835,0.059808,41830.0,41824.0,0.0011]
[1641859311032,1.46614253,41828.0,41823.0,0.80739843]
[1641859311234,0.228228,41830.0,41823.0,0.80739843]
[1641859311235,1.713862,41824.0,41823.0,0.80739843]
[1641859311432,3.06687149,41824.0,41823.0,0.68818092]
[1641859311631,3.06687149,41824.0,41817.0,0.90832324]
[1641859311632,1.45,41823.0,41817.0,0.90832324]
[1641859311832,0.6001,41818.0,41817.0,0.90832324]
[1641859312035,0.6481,41818.0,41817.0,1.00832324]
[1641859312233,0.6481,41818.0,41817.0,1.36295554]
[1641859312533,0.048,41823.0,41818.0,1.15]
[1641859312771,0.048,41831.0,41824.0,0.42723107]
[1641859313075,0.048,41831.0,41830.0,0.1]
[1641859313269,0.52239467,41837.0,41830.0,0.1]
[1641859313469,0.363862,41833.0,41830.0,0.1]
[1641859313669,1.31588776,41831.0,41820.0,0.3546323]
[1641859313878,0.363862,41830.0,41829.0,0.1]
[1641859314768,0.28547676,41831.0,41829.0,0.1]
[1641859315171,0.019,41830.0,41829.0,0.1]
[1641859315369,0.50141019,41830.0,41829.0,0.1]
[1641859315669,0.50141019,41830.0,41829.0,0.07137726]
[1641859315670,0.86527219,41830.0,41829.0,0.07137726]
[1641859316071,0.86527219,41830.0,41828.0,0.00085801]
[1641859316072,2.73858547,41830.0,41828.0,0.00085801]
[1641859316271,0.613862,41828.0,41822.0,0.00343254]
[1641859316527,0.43482133,41822.0,41815.0,0.0011]
[1641859316724,0.7612229,41821.0,41820.0,0.07137726]
[1641859317029,1.30108887,41821.0,41820.0,0.07137726]
[1641859317724,1.20108887,41821.0,41820.0,0.07137726]
[1641859317925,1.30108887,41821.0,41820.0,0.07137726]
[1641859318124,1.42071887,41821.0,41820.0,0.07137726]
[1641859318724,1.27071887,41821.0,41820.0,0.07137726]
[1641859318925,0.87335797,41821.0,41820.0,0.07137726]
[1641859319128,0.89035797,41821.0,41820.0,0.07137726]
[1641859319525,1.24138015,41821.0,41820.0,0.07137726]
[1641859319727,0.89035797,41821.0,41820.0,0.07137726]
[1641859319928,0.500492,41821.0,41820.0,0.07137726]
[1641859320176,0.380862,41821.0,41820.0,0.07137726]
[1641859320369,0.017,41821.0,41820.0,0.12137726]
[1641859320868,0.017,41821.0,41820.0,0.94533883]
[1641859321069,0.36216966,41832.0,41820.0,1.32155083]
[1641859321269,0.36216966,41832.0,41829.0,0.07137726]
[1641859321472,1.733456,41830.0,41829.0,0.07137726]
[1641859321672,0.483456,41830.0,41829.0,0.07137726]
[1641859322073,0.583456,41830.0,41829.0,0.07137726]
[1641859322271,0.483456,41830.0,41829.0,0.07137726]
[1641859322471,0.583456,41830.0,41829.0,0.07137726]
[1641859322872,0.463862,41830.0,41829.0,0.07137726]
[1641859323571,0.463862,41830.0,41820.0,0.42527603]
[1641859323572,0.513862,41830.0,41820.0,0.42527603]
[1641859323773,0.11961537,41825.0,41820.0,0.424]
[1641859324019,0.11961537,41825.0,41824.0,0.07137726]
[1641859324020,0.36961537,41825.0,41824.0,0.07137726]
[1641859324222,0.53347737,41825.0,41824.0,0.07137726]
[1641859324420,1.53347737,41825.0,41824.0,0.07137726]
[1641859324617,0.33633523,41824.0,41820.0,0.42]
[1641859324819,1.16961537,41825.0,41823.0,0.07137726]
[1641859325020,0.363862,41824.0,41823.0,0.07137726]
[1641859325219,0.26961537,41825.0,41823.0,0.07137726]
[1641859325421,1.3,41824.0,41823.0,0.07137726]
[1641859325621,0.463862,41824.0,41823.0,0.07137726]
[1641859326524,0.463862,41824.0,41821.0,0.00085809]
[1641859326728,0.1,41824.0,41823.0,0.07137726]
[1641859326925,0.463862,41824.0,41823.0,0.07137726]
[1641859328669,0.363862,41824.0,41823.0,0.07137726]
[1641859329473,1.16815841,41824.0,41821.0,0.00085809]
[1641859329669,1.16815841,41824.0,41820.0,0.42]
[1641859329670,1.8210667,41822.0,41820.0,0.42]
[1641859329867,2.45560597,41821.0,41820.0,0.42]
[1641859330068,2.63658597,41821.0,41820.0,0.42]
[1641859330267,3.90358597,41821.0,41820.0,0.42]
[1641859330668,2.76547232,41821.0,41820.0,0.42]
[1641859330868,2.45358597,41821.0,41820.0,0.42]
[1641859331068,0.537674,41821.0,41820.0,0.42]
[1641859331719,0.437674,41821.0,41820.0,0.42]
[1641859331921,0.587674,41821.0,41820.0,0.42]
[1641859332320,0.573674,41821.0,41820.0,0.42]
[1641859333119,1.02000918,41821.0,41820.0,0.42]
[1641859333321,1.84231234,41821.0,41820.0,0.42]
[1641859333519,1.54231234,41821.0,41820.0,0.42]
[1641859333721,2.767,41820.0,41819.0,0.07137726]
[1641859333920,3.130862,41820.0,41819.0,0.07137726]
[1641859334122,3.130862,41820.0,41815.0,0.0011]
[1641859334123,1.963862,41819.0,41815.0,0.0011]
[1641859334322,1.830862,41816.0,41815.0,0.0011]
[1641859334526,1.980862,41816.0,41815.0,0.0011]
[1641859334720,2.4390414,41816.0,41801.0,0.3097]
[1641859334922,0.99220027,41815.0,41801.0,0.3097]
[1641859335175,0.99220027,41815.0,41806.0,1.29268689]
[1641859335368,1.04220027,41815.0,41806.0,0.9579]
[1641859335570,1.14220027,41815.0,41806.0,0.93955931]
[1641859335770,0.3805761,41807.0,41806.0,0.93955931]
[1641859335969,0.4404001,41807.0,41806.0,0.93955931]
[1641859336169,0.4404001,41807.0,41805.0,0.00202431]
[1641859336370,0.963862,41806.0,41805.0,0.00202431]
[1641859336573,0.363862,41806.0,41805.0,0.00202431]
[1641859336773,0.37800832,41816.0,41803.0,0.36195307]
[1641859337078,0.012,41806.0,41805.0,0.104]
[1641859337271,0.012,41806.0,41805.0,0.009]
[1641859337471,0.0001,41806.0,41805.0,0.381212]
[1641859337671,0.0001,41806.0,41805.0,0.79253663]
[1641859337871,0.0001,41806.0,41805.0,0.32397556]
[1641859338074,0.0001,41806.0,41805.0,0.00765093]
[1641859338921,0.75155032,41806.0,41805.0,0.00765093]
[1641859339122,1.1311602,41806.0,41805.0,0.01565093]
[1641859339325,1.13620926,41806.0,41805.0,0.01565093]
[1641859339522,1.28620926,41806.0,41805.0,0.01565093]
[1641859339725,1.15,41805.0,41803.0,0.0008583]
[1641859339921,2.2113106,41804.0,41803.0,0.0008583]
[1641859340321,2.6313106,41804.0,41803.0,0.0008583]
[1641859340522,0.119691,41799.0,41792.0,0.996]
[1641859340725,0.059846,41798.0,41795.0,0.00343382]
[1641859340923,1.718862,41796.0,41795.0,0.00343382]
[1641859341123,0.368862,41796.0,41795.0,0.00343382]
[1641859341329,2.01090187,41796.0,41795.0,0.00343382]
[1641859341724,0.36031637,41788.0,41786.0,0.26068832]
[1641859341924,0.36031637,41788.0,41787.0,0.0034342]
[1641859342777,0.36031637,41788.0,41786.0,0.0011]
[1641859342778,0.72417837,41788.0,41786.0,0.0011]
[1641859342975,0.005,41792.0,41786.0,0.0011]
[1641859343179,0.005,41788.0,41786.0,0.0011]
[1641859343379,0.005,41787.0,41786.0,0.0011]
[1641859343576,0.363862,41787.0,41786.0,0.0011]
[1641859343777,0.005,41788.0,41786.0,0.0011]
[1641859344178,0.005,41788.0,41787.0,0.32451942]
[1641859344377,0.005,41788.0,41786.0,0.0011]
[1641859344579,0.005,41788.0,41780.0,0.00342579]
[1641859344779,0.005,41782.0,41780.0,0.00342579]
[1641859344981,0.005,41782.0,41778.0,0.00296043]
[1641859345178,0.05,41787.0,41777.0,1.378889]
[1641859345379,0.005,41782.0,41777.0,1.63071584]
[1641859345780,0.38947166,41786.0,41777.0,1.63071584]
[1641859345981,0.40972326,41780.0,41777.0,1.38011706]
[1641859346181,0.005,41778.0,41777.0,0.958889]
[1641859346423,0.40972326,41780.0,41777.0,0.000789]
[1641859347026,0.40972326,41780.0,41778.0,0.23833404]
[1641859347225,0.41672326,41780.0,41777.0,0.000789]
[1641859347529,0.01221245,41778.0,41777.0,0.000789]
[1641859347925,0.37107445,41778.0,41777.0,0.000789]
[1641859348124,0.00721245,41778.0,41777.0,0.000789]
[1641859348425,0.37107445,41778.0,41777.0,0.000789]
[1641859348826,0.37607445,41778.0,41777.0,0.000789]
[1641859349225,0.37607445,41778.0,41767.0,0.00343522]
[1641859349226,1.2,41777.0,41764.0,1.18521882]
[1641859349428,0.005,41771.0,41764.0,1.18521882]
[1641859349725,0.005,41771.0,41765.0,0.32077174]
[1641859350667,0.00721245,41778.0,41765.0,0.32077174]
[1641859350867,0.005,41766.0,41765.0,0.32077174]
[1641859351068,0.3905005,41766.0,41764.0,0.992]
[1641859351270,0.3855005,41766.0,41757.0,0.3105]
[1641859351471,1.455,41764.0,41763.0,0.00347599]
[1641859351675,1.818862,41764.0,41763.0,0.0022]
[1641859352073,0.368862,41764.0,41763.0,0.0022]
[1641859352271,0.363862,41764.0,41763.0,0.0022]
[1641859352468,0.655,41764.0,41763.0,0.0022]
[1641859352667,0.363862,41764.0,41763.0,0.0022]
[1641859352870,0.3855005,41766.0,41763.0,0.0022]
[1641859353269,0.708,41764.0,41763.0,0.0022]
[1641859353471,1.076862,41764.0,41763.0,0.0022]
[1641859353669,0.371862,41764.0,41763.0,0.0022]